bitfinex-derivatives/quotes_SOLF0:USTF0_20240827
["timestamp","ask_amount","ask_price","bid_price","bid_amount"]
[1724794731043,38.4,149.66,149.49,38.4]
[1724794731626,0.04603261,149.59,149.56,0.04712221]
[1724794731836,0.0493246,149.59,149.56,0.04747466]
[1724794733037,38.4,149.63,149.56,0.04747466]
[1724794733338,38.4,149.57,149.48,2.6044]
[1724794733528,38.4,149.54,149.48,2.6044]
[1724794733763,41.7434,149.54,149.48,5.9491]
[1724794733950,0.04747953,149.52,149.5,0.05068018]
[1724794734648,38.4,149.63,149.5,0.05068018]
[1724794734818,38.4,149.6,149.49,3.3443]
[1724794735030,38.4,149.58,149.48,2.6044]
[1724794735427,3.3436,149.53,149.48,2.6044]
[1724794735623,0.04337079,149.52,149.49,0.04214767]
[1724794736202,3.3442,149.51,149.49,0.04214767]
[1724794736702,0.04337079,149.52,149.49,0.04214767]
[1724794737872,38.44337079,149.52,149.49,0.04214767]
[1724794738352,3.344,149.51,149.49,0.04214767]
[1724794738811,3.3443,149.5,149.49,0.04214767]
[1724794739200,38.44337079,149.52,149.43,6.621]
[1724794739380,38.4,149.46,149.43,6.621]
[1724794739808,3.3469,149.39,149.3,3.3486]
[1724794740138,38.4,149.42,149.28,6.621]
[1724794740152,0.2188,149.54,149.28,6.621]
[1724794740439,38.4,149.4,149.31,6.621]
[1724794740775,38.4,149.4,149.34,0.0479462]
[1724794740776,0.0421657,149.36,149.34,0.0479462]
[1724794742011,0.0421657,149.36,149.27,6.621]
[1724794742517,1.0,149.39,149.27,6.621]
[1724794742540,38.4,149.38,149.25,6.621]
[1724794742924,1.0,149.39,149.28,6.621]
[1724794742936,26.76,149.5,149.28,6.621]
[1724794743244,38.4,149.43,149.28,45.021]
[1724794743256,26.76,149.5,149.23,2.4714]
[1724794743257,0.04583531,149.4,149.38,0.04746801]
[1724794743782,1.0,149.49,149.25,6.621]
[1724794744059,38.4,149.45,149.38,0.04719465]
[1724794744214,1.0,149.49,149.38,0.04719465]
[1724794744215,0.04540393,149.4,149.38,0.04719465]
[1724794744389,1.0,149.49,149.34,38.4]
[1724794744572,1.0,149.49,149.27,3.34806781]
[1724794744573,3.3451,149.47,149.33,3.348]
[1724794744821,0.0441206,149.4,149.38,0.04522829]
[1724794745292,38.4,149.52,149.39,38.4]
[1724794745454,38.4,149.55,149.42,38.4]
[1724794745638,0.04333321,149.47,149.45,3.3453]
[1724794745911,38.4,149.55,149.47,0.0424762]
[1724794746235,38.4,149.49,149.47,0.0424762]
[1724794746856,38.4,149.48,149.34,6.621]
[1724794747042,38.4,149.41,149.34,6.621]
[1724794747277,38.4,149.41,149.31,6.621]
[1724794747482,38.4,149.43,149.31,6.621]
[1724794747672,26.76,149.53,149.31,6.621]
[1724794747673,38.4,149.46,149.31,6.621]
[1724794748038,0.05111977,149.4,149.37,0.0497997]
[1724794748241,38.4,149.52,149.39,38.4]
[1724794748436,38.4,149.52,149.34,6.621]
[1724794748437,38.4,149.52,149.36,38.4]
[1724794748658,41.7433,149.55,149.4,38.4]
[1724794748992,38.4,149.55,149.41,2.6722]
[1724794749179,38.4,149.58,149.43,38.4]
[1724794749547,0.05068344,149.52,149.49,0.04752557]
[1724794749864,26.76,149.69,149.5,3.3441]
[1724794749865,38.4,149.61,149.5,3.3441]
[1724794750095,26.76,149.69,149.41,2.6722]
[1724794750309,38.4,149.52,149.41,2.6722]
[1724794750863,26.76,149.69,149.41,2.6722]
[1724794750888,26.76,149.69,149.38,38.4]
[1724794750889,38.4,149.54,149.38,38.4]
[1724794751182,38.4,149.58,149.43,38.4]
[1724794751348,0.05097459,149.54,149.51,0.04912014]
[1724794752166,38.4,149.65,149.51,0.04912014]
[1724794752370,38.4,149.62,149.49,2.5295]
[1724794753452,0.04867425,149.57,149.54,0.04411813]
[1724794753735,3.341,149.65,149.54,3.38741813]
[1724794753956,38.4,149.66,149.54,0.04411813]
[1724794754160,38.4,149.66,149.5,1.2278514]
[1724794754471,38.4,149.66,149.51,38.4]
[1724794754644,38.4,149.69,149.54,38.4]
[1724794755090,0.04350781,149.63,149.51,3.37254066]
[1724794755346,38.4,149.77,149.6,38.4]
[1724794755632,38.4,149.77,149.64,38.4]
[1724794756082,3.39693336,149.9,149.62,3.27129427]
[1724794756083,6.6575,150.2,149.74,38.4]
[1724794756358,6.6575,150.2,149.81,38.4]
[1724794756359,0.04648352,149.9,149.81,38.4]
[1724794756547,0.1129,150.13,149.75,2.6152]
[1724794756548,38.4,150.01,149.88,0.04343841]
[1724794756785,38.4,149.98,149.84,38.4]
[1724794757131,38.4,149.92,149.77,38.4]
[1724794757352,0.63573376,149.84,149.83,3.3369]
[1724794757565,38.4,149.98,149.83,38.4]
[1724794757825,0.04902308,149.89,149.86,0.04864717]
[1724794758263,38.4,149.95,149.8,38.4]
[1724794758437,0.04625012,149.89,149.86,0.0483363]
[1724794758842,38.4,150.0,149.83,38.4]
[1724794759267,38.4,150.0,149.77,38.4]
[1724794759268,38.4,150.0,149.86,38.4]
[1724794759440,38.4,150.02,149.86,38.4]
[1724794759775,41.7327,150.02,149.92,3.3349]
[1724794760155,0.04971088,149.95,149.93,0.04337775]
[1724794760344,38.4,149.99,149.93,0.04337775]
[1724794760567,65.12,150.08,149.86,38.4]
[1724794760568,0.04862146,149.95,149.86,38.4]
[1724794760777,0.04862146,149.95,149.92,3.3349]
[1724794760982,38.4,150.02,149.92,3.3349]
[1724794761152,0.04473089,149.95,149.86,38.4]
[1724794761407,38.4,150.02,149.96,0.04560782]
[1724794761556,38.4,150.04,149.96,0.04560782]
[1724794761844,0.05086704,150.0,149.91,38.4]
[1724794762052,0.05086704,150.0,149.99,0.04628213]
[1724794762260,80.35286494,150.19,149.99,0.04628213]
[1724794762447,0.04737919,150.01,149.96,38.4]
[1724794762705,38.4,150.11,150.07,0.04578252]
[1724794762886,38.4,150.15,150.07,0.04578252]
[1724794763184,38.4,150.15,149.99,38.4]
[1724794763385,38.4,150.15,150.02,38.4]
[1724794763600,38.4,150.15,150.03,2.631]
[1724794764215,0.04991367,150.1,150.07,0.04704432]
[1724794764492,38.4,150.15,150.07,0.04704432]
[1724794764896,38.4,150.15,150.07,3.37844432]
[1724794765098,38.4,150.23,150.07,3.37844432]
[1724794765099,38.4,150.45,150.13,38.4]
[1724794765276,38.4,150.31,150.16,38.4]
[1724794765477,38.32,150.32,150.17,38.32]
[1724794765895,0.04842689,150.25,150.22,0.04554935]
[1724794766483,38.5483,150.42,150.17,38.32]
[1724794766484,3.3265,150.31,150.17,38.32]
[1724794766662,3.3265,150.31,150.18,2.5771]
[1724794766866,38.32,150.33,150.18,2.5771]
[1724794766867,38.32,150.33,150.22,0.04785197]
[1724794767150,38.32,150.36,150.2,38.32]
[1724794767680,0.04842689,150.29,150.26,0.04960132]
[1724794768270,38.32,150.39,150.23,38.32]
[1724794768648,0.04842689,150.29,150.26,0.04980862]
[1724794768901,2.8954,150.48,150.26,38.36980862]
[1724794769233,38.32,150.41,150.26,38.32]
[1724794769796,38.32,150.41,150.18,2.5771]
[1724794769797,7.86626463,150.73,150.25,26.66]
[1724794769960,38.32,150.51,150.34,38.32]
[1724794770380,3.3226,150.48,150.37,38.32]
[1724794770667,38.32,150.53,150.37,38.32]
[1724794771022,38.32,150.53,150.41,0.04998519]
[1724794771451,38.32,150.53,150.39,38.32]
[1724794771555,2.4804,150.63,150.39,38.32]
[1724794771556,38.32,150.55,150.39,38.32]
[1724794771780,38.32,150.55,150.45,0.04878068]
[1724794772011,3.3211,150.55,150.45,3.37188068]
[1724794772243,38.32,150.61,150.45,38.32]
[1724794772467,38.32,150.61,150.48,0.05054663]
[1724794772586,3.3207,150.57,150.53,0.04556285]
[1724794772872,38.32,150.61,150.53,0.04556285]
[1724794773111,38.32,150.55,150.53,0.04556285]
[1724794773286,38.32,150.55,150.39,38.32]
[1724794773565,38.32,150.52,150.39,38.32]
[1724794774013,38.32,150.52,150.36,38.32]
[1724794774358,3.3243,150.4,150.3,38.32]
[1724794774547,38.32,150.44,150.28,38.32]
[1724794774739,38.32,150.41,150.33,0.0425973]
[1724794774935,3.3252,150.36,150.33,0.0425973]
[1724794775087,3.3252,150.36,150.33,0.04982462]
[1724794775380,0.0443893,150.38,150.33,0.04982462]
[1724794776883,3.3254,150.35,150.33,0.04982462]
[1724794777568,0.0443893,150.38,150.33,0.04982462]
[1724794778488,0.0443893,150.38,150.34,3.3255]
[1724794778773,0.0443893,150.38,150.33,38.36982462]
[1724794779574,0.0443893,150.38,150.33,41.69542462]
[1724794779788,0.0443893,150.38,150.33,38.36982462]
[1724794780098,0.0443893,150.38,150.33,0.04982462]
[1724794781678,38.3643893,150.38,150.33,0.04982462]
[1724794782597,0.0443893,150.38,150.33,0.04982462]
[1724794783197,3.3691893,150.38,150.33,0.04982462]
[1724794783488,0.0443893,150.38,150.33,0.04982462]
[1724794784284,3.3249,150.37,150.33,0.04982462]
[1724794784788,0.0443893,150.38,150.33,0.04982462]
[1724794786077,0.0443893,150.38,150.33,3.37542462]
[1724794786327,0.0443893,150.38,150.36,38.32]
[1724794786498,0.0443893,150.38,150.37,3.3249]
[1724794786676,3.3233,150.45,150.37,3.3249]
[1724794787085,38.32,150.51,150.36,38.32]
[1724794787284,38.32,150.48,150.33,38.32]
[1724794787472,38.32,150.45,150.3,38.32]
[1724794787695,38.32,150.42,150.36,0.04198819]
[1724794787876,38.32,150.42,150.37,0.04284157]
[1724794788199,38.32,150.4,150.17,7.5461]
[1724794788371,38.32,150.37,150.22,38.32]
[1724794788584,3.3256,150.35,150.25,3.3274]
[1724794788798,38.32,150.37,150.22,38.32]
[1724794789177,0.04342033,150.31,150.28,0.04676351]
[1724794789371,0.04342033,150.31,150.28,0.04669898]
[1724794789372,0.04980357,150.31,150.28,0.04669898]
[1724794790584,3.37610357,150.31,150.28,0.04669898]
[1724794791181,0.04980357,150.31,150.28,0.04669898]
[1724794793380,3.3267,150.29,150.28,0.04669898]
[1724794795226,3.3266,150.3,150.28,0.04669898]
[1724794795581,0.04980357,150.31,150.28,0.04669898]
[1724794795785,3.3267,150.29,150.28,0.04669898]
[1724794796781,0.04980357,150.31,150.28,0.04669898]
[1724794798779,3.37610357,150.31,150.28,0.04669898]
[1724794799049,0.04980357,150.31,150.28,0.04669898]
[1724794800588,0.04980357,150.31,150.17,2.456]
[1724794800993,2.6731,150.38,150.22,38.32]
[1724794801010,38.32,150.37,150.22,38.32]
[1724794801290,38.32,150.34,150.22,38.32]
[1724794801583,38.32,150.34,150.19,38.32]
[1724794801805,3.3271,150.27,150.26,0.04260691]
[1724794801994,38.32,150.28,150.09,2.571]
[1724794802199,38.32,150.25,150.1,38.32]
[1724794802605,2.6547,150.27,150.13,38.32]
[1724794802796,3.3288,150.2,150.13,41.6502]
[1724794803120,0.04463112,150.18,150.15,0.04190324]
[1724794803281,0.04989605,150.18,150.17,3.3293]
[1724794803605,2.6547,150.27,150.17,3.3293]
[1724794803982,2.6547,150.27,150.16,38.32]
[1724794804385,3.3277,150.25,150.16,41.6494]
[1724794804601,0.04202077,150.22,150.19,0.0487664]
[1724794805961,38.32,150.36,150.19,0.0487664]
[1724794806078,38.32,150.36,150.18,38.32]
[1724794806289,38.32,150.36,150.21,38.32]
[1724794806685,0.04719264,150.3,150.27,0.045685]
[1724794806891,3.3267,150.29,150.27,0.045685]
[1724794807085,0.04719264,150.3,150.27,0.045685]
[1724794807477,3.3267,150.29,150.27,0.045685]
[1724794808085,3.3269,150.28,150.27,0.045685]
[1724794809112,0.04719264,150.3,150.27,0.045685]
[1724794810488,3.3269,150.28,150.27,0.045685]
[1724794811301,0.04719264,150.3,150.27,0.045685]
[1724794812085,3.3269,150.29,150.27,0.045685]
[1724794812681,0.04719264,150.3,150.27,0.045685]
[1724794814288,3.37389264,150.3,150.27,0.045685]
[1724794814588,0.04719264,150.3,150.27,0.045685]
[1724794815896,0.04719264,150.3,150.27,38.365685]
[1724794816089,0.04719264,150.3,150.28,3.3269]
[1724794816292,2.538,150.4,150.27,38.365685]
[1724794816598,2.538,150.4,150.29,38.32]
[1724794817199,2.538,150.4,150.29,41.6466]
[1724794817385,2.538,150.4,150.33,0.05052521]
[1724794817595,2.538,150.4,150.35,0.04306288]
[1724794817794,3.3251,150.36,150.35,0.04306288]
[1724794818510,2.6408,150.49,150.35,0.04306288]
[1724794818689,2.6408,150.49,150.22,4.9864]
[1724794818690,38.32,150.46,150.4,0.04499058]
[1724794818890,3.3238,150.42,150.41,0.04972914]
[1724794819100,38.32,150.46,150.4,0.04358998]
[1724794819301,38.32,150.46,150.41,0.04947502]
[1724794819501,38.32,150.46,150.33,3.3256]
[1724794820587,0.04440833,150.41,150.38,0.05069393]
[1724794824731,3.3243,150.4,150.38,0.05069393]
[1724794825003,0.04440833,150.41,150.38,0.05069393]
[1724794825805,3.36850833,150.41,150.38,0.05069393]
[1724794826006,0.04440833,150.41,150.38,0.05069393]
[1724794826706,3.36850833,150.41,150.38,0.05069393]
[1724794827602,0.04440833,150.41,150.38,0.05069393]
[1724794832811,0.04440833,150.41,150.39,3.3244]
[1724794833021,5.1181,150.52,150.38,0.05069393]
[1724794833022,2.6555,150.52,150.4,38.29]
[1724794833227,7.88911754,150.59,150.38,0.05069393]
[1724794833228,38.29,150.59,150.45,38.29]
[1724794833447,18.08125563,150.58,150.45,38.29]
[1724794833626,18.08125563,150.58,150.43,38.29]
[1724794833627,6.18129475,150.57,150.43,38.29]
[1724794834015,3.3217,150.52,150.43,38.29]
[1724794834238,40.8782,150.58,150.48,0.04579583]
[1724794834408,38.29,150.55,150.4,38.29]
[1724794834633,38.29,150.55,150.51,0.04351036]
[1724794834918,3.3234,150.45,150.38,2.622]
[1724794835122,38.29,150.46,150.3,2.6317]
[1724794835412,3.324,150.42,150.33,3.3257]
[1724794835616,38.29,150.46,150.33,3.3257]
[1724794836117,0.04497931,150.41,150.38,0.04738486]
[1724794841807,3.36897931,150.41,150.38,0.04738486]
[1724794842113,0.04497931,150.41,150.38,0.04738486]
[1724794842324,3.3245,150.39,150.38,0.04738486]
[1724794842609,38.3,150.44,150.31,38.3]
[1724794842812,38.3,150.42,150.22,2.5341]
[1724794843056,38.3,150.42,150.27,3.3271]
[1724794843212,38.3,150.39,150.22,2.5341]
[1724794843416,2.4494,150.38,150.22,2.5341]
[1724794843607,2.4494,150.38,150.25,3.3275]
[1724794843911,0.04578755,150.33,150.29,0.04291271]
[1724794844122,3.37178755,150.33,150.29,0.04291271]
[1724794844418,0.04578755,150.33,150.29,0.04291271]
[1724794845009,0.04578755,150.33,150.3,38.3]
[1724794845717,0.04578755,150.33,150.32,3.326]
[1724794846119,0.04578755,150.33,150.3,38.3]
[1724794846813,0.04578755,150.33,150.3,41.6264]
[1724794848016,0.04578755,150.33,150.31,38.32]
[1724794849815,0.04578755,150.33,150.29,0.04291271]
[1724794850710,0.04578755,150.33,150.29,3.36941271]
[1724794851420,0.04578755,150.33,150.29,0.04291271]
[1724794852318,0.04578755,150.33,150.31,38.32]
[1724794852528,0.04578755,150.33,150.32,3.326]
[1724794853040,0.04578755,150.33,150.31,38.32]
[1724794855623,0.04578755,150.33,150.29,3.36941271]
[1724794855827,0.04578755,150.33,150.29,0.04291271]
[1724794856031,0.04578755,150.33,150.31,38.32]
[1724794858323,0.04578755,150.33,150.31,41.6462]
[1724794858527,0.04578755,150.33,150.31,38.32]
[1724794859128,0.04578755,150.33,150.32,3.326]
[1724794859836,0.04578755,150.33,150.31,41.6462]
[1724794860128,0.04578755,150.33,150.32,31.93]
[1724794860332,37.1242,150.44,150.32,31.93]
[1724794861328,3.3248,150.38,150.36,0.04337758]
[1724794862025,3.3248,150.38,150.29,3.266711]
[1724794862026,37.1242,150.44,150.3,31.93]
[1724794862229,31.93,150.41,150.3,31.93]
[1724794862636,5.1942,150.44,150.29,3.40183559]
[1724794862931,5.1942,150.44,150.33,31.93]
[1724794863144,0.04275999,150.4,150.37,0.04415752]
[1724794863629,3.3246,150.39,150.37,0.04415752]
[1724794864140,0.04275999,150.4,150.37,3.36895752]
[1724794864353,0.04275999,150.4,150.37,0.04415752]
[1724794866633,3.36705999,150.4,150.37,0.04415752]
[1724794867236,0.04275999,150.4,150.37,0.04415752]
[1724794867926,0.04275999,150.4,150.39,3.3245]
[1724794868632,0.04275999,150.4,150.38,3.3247]
[1724794869245,0.04275999,150.4,150.37,35.29905752]
[1724794869544,0.04275999,150.4,150.37,31.97415752]
[1724794870453,0.04275999,150.4,150.37,0.04415752]
[1724794871428,3.36705999,150.4,150.37,0.04415752]
[1724794871939,0.04275999,150.4,150.38,3.3246]
[1724794872246,0.04275999,150.4,150.37,31.97415752]
[1724794873938,0.04275999,150.4,150.37,35.29885752]
[1724794874437,0.04275999,150.4,150.38,3.3245]
[1724794874840,0.04275999,150.4,150.38,6.6327873]
[1724794876140,0.04275999,150.4,150.38,3.3082873]
[1724794877140,0.04275999,150.4,150.37,31.97415752]
[1724794877347,0.04275999,150.4,150.38,3.3247]
[1724794877641,3.3233,150.45,150.39,31.93]
[1724794877846,9.31103083,150.52,150.41,3.324]
[1724794878038,15.49397245,150.51,150.42,31.93]
[1724794878244,15.49397245,150.5,150.42,31.93]
[1724794878452,6.18294162,150.49,150.43,3.3235]
[1724794878646,0.0445354,150.48,150.44,0.04537166]
[1724794878939,0.0445354,150.48,150.45,3.3231]
[1724794879143,3.322,150.51,150.44,31.97866233]
[1724794879144,15.50141639,150.53,150.47,31.93]
[1724794879437,3.3216,150.53,150.47,35.2527]
[1724794880334,3.3216,150.53,150.48,0.04484216]
[1724794881350,3.3217,150.52,150.48,0.04484216]
[1724794881545,3.3217,150.52,150.48,0.04206351]
[1724794881746,3.3219,150.51,150.48,0.04206351]
[1724794882046,3.3219,150.51,150.48,0.04863153]
[1724794882241,9.31991422,150.58,150.49,35.2522]
[1724794882447,3.3214,150.53,150.52,0.04992902]
[1724794882843,9.51358096,150.53,150.52,0.04992902]
[1724794883244,3.3214,150.53,150.52,0.04992902]
[1724794883446,3.321,150.55,150.52,0.04992902]
[1724794883866,9.32783534,150.57,150.52,0.04992902]
[1724794884046,31.93,150.61,150.52,0.04992902]
[1724794884047,3.3214,150.53,150.52,0.04992902]
[1724794884451,9.32996494,150.6,150.52,0.04992902]
[1724794884647,3.3213,150.54,150.52,0.04992902]
[1724794884843,9.32996494,150.6,150.52,0.04992902]
[1724794885051,3.3214,150.54,150.52,0.04992902]
[1724794885452,9.32996494,150.59,150.52,0.04992902]
[1724794885663,15.52330927,150.58,150.52,0.04992902]
[1724794885859,15.52330927,150.57,150.52,0.04992902]
[1724794886052,15.52330927,150.56,150.53,0.04835598]
[1724794886247,15.52330927,150.55,150.45,31.93]
[1724794886451,15.52192702,150.54,150.45,31.93]
[1724794886660,6.19334433,150.53,150.47,3.3226]
[1724794886859,6.19334433,150.52,150.45,31.93]
[1724794887060,2.4862,150.58,150.45,35.253]
[1724794887263,2.4862,150.58,150.45,38.55743159]
[1724794887264,3.3222,150.5,150.45,38.55743159]
[1724794887557,0.04302799,150.49,150.46,0.04414172]
[1724794888059,0.04302799,150.49,150.48,31.93]
[1724794888355,0.04302799,150.49,150.48,35.2525]
[1724794888850,0.04302799,150.49,150.48,3.3225]
[1724794889057,0.04302799,150.49,150.48,31.93]
[1724794889445,6.19320566,150.57,150.48,31.93]
[1724794889657,3.3213,150.54,150.49,3.3222]
[1724794889847,9.3299574,150.59,150.48,31.93]
[1724794890056,15.52348619,150.58,150.48,31.93]
[1724794890356,31.93,150.61,150.51,31.93]
[1724794890654,15.52697934,150.6,150.54,0.04481506]
[1724794890861,3.3209,150.55,150.54,0.04481506]
[1724794893757,3.3221,150.5,150.47,31.93]
[1724794894160,34.4744,150.59,150.47,35.2527]
[1724794894461,3.3219,150.51,150.47,35.2527]
[1724794894858,3.3219,150.51,150.47,31.97942937]
[1724794894859,0.04696084,150.51,150.47,31.97942937]
[1724794895556,3.36886084,150.51,150.47,35.30202937]
[1724794895753,0.04696084,150.51,150.47,31.97942937]
[1724794895967,0.04696084,150.51,150.48,25.53]
[1724794896666,0.04696084,150.51,150.5,25.53]
[1724794896863,0.04696084,150.51,150.48,25.53]
[1724794898163,0.04696084,150.51,150.5,25.53]
[1724794899265,0.04696084,150.51,150.5,28.852]
[1724794899769,0.04696084,150.51,150.5,25.53]
[1724794900858,3.3215,150.53,150.5,25.53]
[1724794900859,25.53,150.62,150.5,25.53]
[1724794901060,25.53,150.62,150.53,25.53]
[1724794901263,6.19577034,150.61,150.53,25.53]
[1724794901562,6.19577034,150.61,150.51,25.53]
[1724794901767,25.53,150.6,150.54,0.04911091]
[1724794901957,25.53,150.6,150.5,3.322]
[1724794901958,3.3212,150.54,150.5,3.322]
[1724794902153,3.3212,150.54,150.5,3.36696841]
[1724794902768,3.3215,150.53,150.5,0.04496841]
[1724794902964,3.3215,150.53,150.5,0.04879862]
[1724794903567,3.3216,150.52,150.5,0.04879862]
[1724794903775,2.448,150.6,150.49,0.04734695]
[1724794904104,3.31627566,150.66,150.47,3.34208053]
[1724794904105,25.53,150.63,150.53,0.04337019]
[1724794904263,25.53,150.63,150.56,0.0468023]
[1724794904780,25.53,150.61,150.56,0.0468023]
[1724794906266,3.3205,150.57,150.56,0.0468023]
[1724794908909,25.53,150.62,150.49,25.53]
[1724794908910,0.0499527,150.55,150.49,25.53]
[1724794909074,25.53,150.6,150.49,25.53]
[1724794909776,0.04227685,150.56,150.53,0.0472044]
[1724794910875,0.04227685,150.56,150.49,25.53]
[1724794911377,3.3218,150.52,150.49,25.53]
[1724794911677,25.53,150.61,150.49,25.53]
[1724794911983,3.3212,150.54,150.53,0.04501232]
[1724794912870,25.53,150.58,150.47,25.53]
[1724794913069,2.4643,150.56,150.47,25.53]
[1724794913770,0.04433103,150.53,150.5,0.04424873]
[1724794914274,3.3218,150.51,150.5,0.04424873]
[1724794914983,0.04433103,150.53,150.5,0.04424873]
[1724794915377,3.3218,150.51,150.5,0.04424873]
[1724794916574,3.3216,150.52,150.5,0.04424873]
[1724794916774,0.04433103,150.53,150.5,0.04424873]
[1724794917372,3.3216,150.52,150.5,25.57424873]
[1724794917777,0.04433103,150.53,150.5,25.57424873]
[1724794917973,0.04433103,150.53,150.5,0.04424873]
[1724794917974,3.3216,150.52,150.5,0.04424873]
[1724794918674,3.36573103,150.53,150.5,0.04424873]
[1724794918879,0.04433103,150.53,150.5,0.04424873]
[1724794919084,3.3216,150.52,150.5,0.04424873]
[1724794919276,0.04433103,150.53,150.5,0.04424873]
[1724794920498,3.3218,150.51,150.5,0.04424873]
[1724794921883,3.3217,150.52,150.5,0.04424873]
[1724794922781,3.3218,150.51,150.5,0.04424873]
[1724794924985,2.602,150.52,150.43,11.22]
[1724794925183,11.22,150.51,150.43,11.22]
[1724794925446,2.602,150.52,150.43,11.22]
[1724794925581,11.22,150.5,150.43,11.22]
[1724794925799,0.0427185,150.48,150.45,0.04246078]
[1724794926375,3.3229,150.46,150.45,0.04246078]
[1724794926779,0.0427185,150.48,150.45,0.04246078]
[1724794927408,3.3229,150.47,150.45,0.04246078]
[1724794928181,3.3229,150.46,150.45,0.04246078]
[1724794928987,3.3228,150.47,150.45,0.04246078]
[1724794929484,0.0427185,150.48,150.45,0.04246078]
[1724794930381,3.3229,150.46,150.45,0.04246078]
[1724794935485,3.3228,150.47,150.45,0.04246078]
[1724794936591,3.3229,150.46,150.45,0.04246078]
[1724794936791,0.0427185,150.48,150.45,0.04246078]
[1724794937388,3.3654185,150.48,150.45,0.04246078]
[1724794937588,0.0427185,150.48,150.45,0.04246078]
[1724794938097,3.3227,150.47,150.45,0.04246078]
[1724794940693,0.0427185,150.48,150.45,0.04246078]
[1724794941288,3.3227,150.47,150.45,0.04246078]
[1724794941492,0.0427185,150.48,150.45,0.04246078]
[1724794941883,6.68893286,150.48,150.45,0.04246078]
[1724794942084,0.0427185,150.48,150.45,0.04246078]
[1724794943585,0.0427185,150.48,150.46,28.06]
[1724794943790,0.0427185,150.48,150.47,3.30475423]
[1724794944020,21.42965675,150.52,150.46,28.06]
[1724794944209,11.69931862,150.51,150.46,28.06]
[1724794944389,11.69928974,150.5,150.48,28.06]
[1724794944694,28.06,150.6,150.48,31.46577437]
[1724794944995,0.04375013,150.56,150.52,0.04334783]
[1724794945193,21.43291605,150.55,150.52,0.04334783]
[1724794945392,21.43291605,150.54,150.52,0.04334783]
[1724794945591,11.69922375,150.53,150.52,0.04334783]
[1724794946094,21.43238352,150.53,150.52,0.04334783]
[1724794946294,11.69922375,150.53,150.52,0.04334783]
[1724794946495,6.64385575,150.53,150.52,0.04334783]
[1724794946695,15.02083333,150.53,150.52,0.04334783]
[1724794947201,8.37682446,150.53,150.52,0.04334783]
[1724794947395,15.02101243,150.53,150.52,0.04334783]
[1724794947593,24.75457501,150.53,150.52,0.04334783]
[1724794947996,30.94842014,150.53,150.52,0.04334783]
[1724794948791,3.3224,150.49,150.46,3.3228]
[1724794948991,6.64418797,150.48,150.46,3.3228]
[1724794949301,3.3224,150.49,150.46,3.3228]
[1724794949488,11.69975394,150.48,150.46,3.3228]
[1724794949793,3.3225,150.48,150.45,14.60970262]
[1724794950091,0.04439632,150.49,150.45,11.28660262]
[1724794950298,3.36679632,150.49,150.45,11.28660262]
[1724794950492,6.64503581,150.48,150.45,11.28660262]
[1724794950789,3.36679632,150.49,150.45,11.28660262]
[1724794950993,11.69982,150.48,150.45,11.28660262]
[1724794951191,3.36679632,150.49,150.45,11.28660262]
[1724794951393,11.69981722,150.48,150.45,11.28660262]
[1724794951594,3.36679632,150.49,150.45,11.28660262]
[1724794951903,11.69979783,150.48,150.45,11.28660262]
[1724794952085,0.04439632,150.49,150.45,11.28660262]
[1724794952286,11.699848,150.48,150.45,11.28660262]
[1724794952494,3.36679632,150.49,150.45,11.28660262]
[1724794952807,15.02239164,150.48,150.45,0.04660262]
[1724794952986,3.3226,150.48,150.46,11.24]
[1724794953497,0.04439632,150.49,150.46,11.24]
[1724794953796,11.6997264,150.48,150.45,0.04660262]
[1724794954097,3.3226,150.48,150.45,0.04660262]
[1724794954290,3.3226,150.48,150.45,11.28660262]
[1724794954812,0.04439632,150.49,150.45,0.04660262]